fUSD/lending_fUSD_20260607
["ID","MTS","AMOUNT","RATE_DAILY","PERIOD"]
[424347187,1780774248000,-1502.6,0.00015572,2]
[424347185,1780774248000,-2000.0,0.00015572,2]
[424347186,1780774248000,-2000.0,0.00015572,2]
[424347182,1780774248000,-1000.0,0.00015572,2]
[424347183,1780774248000,-2000.0,0.00015572,2]
[424347174,1780774248000,-2000.0,0.00015572,2]
[424347177,1780774248000,-1000.0,0.00015572,2]
[424347178,1780774248000,-2000.0,0.00015572,2]
[424347184,1780774248000,-1000.0,0.00015572,2]
[424347188,1780774248000,-1000.0,0.00015572,2]
[424347204,1780774248000,-1000.0,0.00015572,2]
[424347192,1780774248000,-1000.0,0.00015572,2]
[424347193,1780774248000,-2000.0,0.00015572,2]
[424347205,1780774248000,-2000.0,0.00015572,2]
[424347195,1780774248000,-2000.0,0.00015572,2]
[424347194,1780774248000,-1000.0,0.00015572,2]
[424347196,1780774248000,-1000.0,0.00015572,2]
[424347198,1780774248000,-1000.0,0.00015572,2]
[424347197,1780774248000,-2000.0,0.00015572,2]
[424347199,1780774248000,-2000.0,0.00015572,2]
[424347200,1780774248000,-1000.0,0.00015572,2]
[424347202,1780774248000,-1000.0,0.00015572,2]
[424347201,1780774248000,-2000.0,0.00015572,2]
[424347179,1780774248000,-591.79,0.00015572,2]
[424347191,1780774248000,-2000.0,0.00015572,2]
[424347171,1780774248000,-2000.0,0.00015572,2]
[424347167,1780774248000,-2000.0,0.00015572,2]
[424347169,1780774248000,-2000.0,0.00015572,2]
[424347208,1780774248000,-1000.0,0.00015572,2]
[424347155,1780774248000,-2000.0,0.00015572,2]
[424347150,1780774248000,-2000.0,0.00015572,2]
[424347154,1780774248000,-2000.0,0.00015572,2]
[424347148,1780774248000,-367.18,0.00015572,2]
[424347151,1780774248000,-2000.0,0.00015572,2]
[424347149,1780774248000,-2000.0,0.00015572,2]
[424347152,1780774248000,-2000.0,0.00015572,2]
[424347156,1780774248000,-2000.0,0.00015572,2]
[424347157,1780774248000,-2000.0,0.00015572,2]
[424347153,1780774248000,-2000.0,0.00015572,2]
[424347158,1780774248000,-2000.0,0.00015572,2]
[424347160,1780774248000,-2000.0,0.00015572,2]
[424347162,1780774248000,-319.66,0.00015572,2]
[424347165,1780774248000,-2000.0,0.00015572,2]
[424347159,1780774248000,-2000.0,0.00015572,2]
[424347166,1780774248000,-2000.0,0.00015572,2]
[424347161,1780774248000,-2000.0,0.00015572,2]
[424347163,1780774248000,-2000.0,0.00015572,2]
[424347168,1780774248000,-1000.0,0.00015572,2]
[424347164,1780774248000,-2000.0,0.00015572,2]
[424347170,1780774248000,-1000.0,0.00015572,2]
[424347181,1780774248000,-2000.0,0.00015572,2]
[424347180,1780774248000,-1000.0,0.00015572,2]
[424347173,1780774248000,-2000.0,0.00015572,2]
[424347175,1780774248000,-1000.0,0.00015572,2]
[424347172,1780774248000,-1000.0,0.00015572,2]
[424347176,1780774248000,-2000.0,0.00015572,2]
[424347206,1780774248000,-1000.0,0.00015572,2]
[424347203,1780774248000,-1626.08,0.00015572,2]
[424347209,1780774248000,-2000.0,0.00015572,2]
[424347242,1780774248000,-169.65,0.00015615,2]
[424347253,1780774248000,-350.0,0.00015862,2]
[424347252,1780774248000,-6115.0,0.00015818,5]
[424347241,1780774248000,-150.0,0.00015572,2]
[424347243,1780774248000,-169.65,0.00015615,2]
[424347244,1780774248000,-350.0,0.00015654,2]
[424347245,1780774248000,-10000.0,0.00015664,2]
[424347246,1780774248000,-1148.61238259,0.00015732,2]
[424347247,1780774248000,-1672.7364795,0.00015732,2]
[424347251,1780774248000,-6147.0,0.00015818,5]
[424347250,1780774248000,-6056.0,0.00015818,5]
[424347248,1780774248000,-278.46,0.00015747,2]
[424347255,1780774248000,-565.32475062,0.00015973,2]
[424347261,1780774248000,-150.0,0.00016082,2]
[424347264,1780774248000,-150.0,0.00016082,2]
[424347254,1780774248000,-500.0,0.00015973,2]
[424347265,1780774248000,-150.0,0.00016082,2]
[424347260,1780774248000,-150.0,0.00016082,2]
[424347262,1780774248000,-150.0,0.00016082,2]
[424347257,1780774248000,-779.1455433,0.00016,2]
[424347259,1780774248000,-301.79013786,0.00016,2]
[424347263,1780774248000,-150.0,0.00016082,2]
[424347256,1780774248000,-300.0,0.00016,2]
[424347258,1780774248000,-215.80795776,0.00016,3]
[424347267,1780774248000,-150.0,0.00016082,2]
[424347207,1780774248000,-2000.0,0.00015572,2]
[424347266,1780774248000,-150.0,0.00016082,2]
[424347235,1780774248000,-1000.0,0.00015572,2]
[424347237,1780774248000,-1000.0,0.00015572,2]
[424347249,1780774248000,-2275.15039142,0.00015807,2]
[424347238,1780774248000,-1000.0,0.00015572,2]
[424347213,1780774248000,-1375.66,0.00015572,2]
[424347236,1780774248000,-1000.0,0.00015572,2]
[424347210,1780774248000,-1000.0,0.00015572,2]
[424347216,1780774248000,-1000.0,0.00015572,2]
[424347215,1780774248000,-1000.0,0.00015572,2]
[424347214,1780774248000,-1000.0,0.00015572,2]
[424347211,1780774248000,-2000.0,0.00015572,2]
[424347212,1780774248000,-1000.0,0.00015572,2]
[424347217,1780774248000,-1000.0,0.00015572,2]
[424347219,1780774248000,-1000.0,0.00015572,2]
[424347220,1780774248000,-1000.0,0.00015572,2]
[424347224,1780774248000,-1000.0,0.00015572,2]
[424347227,1780774248000,-1000.0,0.00015572,2]
[424347221,1780774248000,-470.36,0.00015572,2]
[424347218,1780774248000,-1000.0,0.00015572,2]
[424347240,1780774248000,-967.59,0.00015572,2]
[424347233,1780774248000,-862.65,0.00015572,2]
[424347223,1780774248000,-1000.0,0.00015572,2]
[424347234,1780774248000,-1000.0,0.00015572,2]
[424347230,1780774248000,-1000.0,0.00015572,2]
[424347231,1780774248000,-1000.0,0.00015572,2]
[424347229,1780774248000,-1000.0,0.00015572,2]
[424347239,1780774248000,-1000.0,0.00015572,2]
[424347228,1780774248000,-1000.0,0.00015572,2]
[424347226,1780774248000,-1000.0,0.00015572,2]
[424347225,1780774248000,-1000.0,0.00015572,2]
[424347222,1780774248000,-1000.0,0.00015572,2]
[424347232,1780774248000,-1000.0,0.00015572,2]
[424347310,1780774249000,-151.0,0.00016438,2]
[424347306,1780774249000,-256.84070519,0.00016438,2]
[424347318,1780774249000,-152.844604,0.00016438,2]
[424347308,1780774249000,-160.04797625,0.00016438,2]
[424347317,1780774249000,-151.0,0.00016438,2]
[424347327,1780774249000,-151.0,0.00016438,2]
[424347300,1780774249000,-170.89623116,0.00016438,2]
[424347305,1780774249000,-815.03359362,0.00016438,2]
[424347303,1780774249000,-181.74953247,0.00016438,2]
[424347301,1780774249000,-185.41672275,0.00016438,2]
[424347302,1780774249000,-190.2980726,0.00016438,2]
[424347311,1780774249000,-151.0,0.00016438,2]
[424347307,1780774249000,-207.66373876,0.00016438,2]
[424347316,1780774249000,-198.697,0.00016438,2]
[424347326,1780774249000,-151.0,0.00016438,2]
[424347314,1780774249000,-151.0,0.00016438,2]
[424347313,1780774249000,-151.0,0.00016438,2]
[424347315,1780774249000,-151.0,0.00016438,2]
[424347330,1780774249000,-151.0,0.00016438,2]
[424347320,1780774249000,-151.0,0.00016438,2]
[424347331,1780774249000,-151.0,0.00016438,2]
[424347322,1780774249000,-151.0,0.00016438,2]
[424347323,1780774249000,-151.0,0.00016438,2]
[424347321,1780774249000,-151.0,0.00016438,2]
[424347328,1780774249000,-151.0,0.00016438,2]
[424347319,1780774249000,-151.0,0.00016438,2]
[424347329,1780774249000,-151.0,0.00016438,2]
[424347299,1780774249000,-523.33,0.00016438,2]
[424347312,1780774249000,-151.0,0.00016438,2]
[424347298,1780774249000,-305.1,0.00016438,2]
[424347279,1780774249000,-301.79013786,0.000162,2]
[424347297,1780774249000,-500.0,0.00016425,2]
[424347325,1780774249000,-151.0,0.00016438,2]
[424347278,1780774249000,-354.0,0.00016192,2]
[424347277,1780774249000,-250.0,0.00016192,2]
[424347272,1780774249000,-250.0,0.00016192,2]
[424347268,1780774249000,-216.0,0.00016082,2]
[424347275,1780774249000,-250.0,0.00016192,2]
[424347270,1780774249000,-9999.99,0.00016116,2]
[424347274,1780774249000,-250.0,0.00016192,2]
[424347269,1780774249000,-301.79013786,0.000161,2]
[424347273,1780774249000,-250.0,0.00016192,2]
[424347276,1780774249000,-250.0,0.00016192,2]
[424347271,1780774249000,-250.0,0.00016192,2]
[424347281,1780774249000,-341.79246228,0.00016207,2]
[424347280,1780774249000,-1255.34,0.00016202,2]
[424347283,1780774249000,-200.0,0.00016274,2]
[424347289,1780774249000,-200.0,0.00016274,2]
[424347290,1780774249000,-200.0,0.00016274,2]
[424347292,1780774249000,-1191.11104074,0.0001628,2]
[424347286,1780774249000,-200.0,0.00016274,2]
[424347285,1780774249000,-200.0,0.00016274,2]
[424347282,1780774249000,-350.0,0.00016271,2]
[424347288,1780774249000,-200.0,0.00016274,2]
[424347287,1780774249000,-200.0,0.00016274,2]
[424347291,1780774249000,-332.0,0.00016274,2]
[424347284,1780774249000,-200.0,0.00016274,2]
[424347304,1780774249000,-184.56562716,0.00016438,2]
[424347294,1780774249000,-350.0,0.00016288,2]
[424347296,1780774249000,-278.46,0.00016352,2]
[424347293,1780774249000,-1734.62772924,0.0001628,2]
[424347295,1780774249000,-200.0,0.0001634,2]
[424347324,1780774249000,-151.0,0.00016438,2]
[424347309,1780774249000,-900.0,0.00016438,2]
[424347333,1780774249000,-151.0,0.00016438,2]
[424347368,1780774249000,-400.0,0.0001667,2]
[424347366,1780774249000,-400.0,0.0001667,2]
[424347371,1780774249000,-168.33,0.00016712,2]
[424347381,1780774249000,-300.0,0.00016858,2]
[424347383,1780774249000,-300.0,0.00016858,2]
[424347382,1780774249000,-300.0,0.00016858,2]
[424347370,1780774249000,-440.0,0.0001667,2]
[424347379,1780774249000,-300.0,0.00016858,2]
[424347375,1780774249000,-1673.92507737,0.000168,2]
[424347380,1780774249000,-300.0,0.00016858,2]
[424347373,1780774249000,-500.0,0.0001679,2]
[424347374,1780774249000,-2000.0,0.0001679,2]
[424347376,1780774249000,-200.0,0.000168,3]
[424347372,1780774249000,-214.58,0.00016767,2]
[424347377,1780774249000,-1235.18214925,0.00016828,2]
[424347378,1780774249000,-1798.80895522,0.00016828,2]
[424347387,1780774249000,-175.0,0.00016858,2]
[424347384,1780774249000,-300.0,0.00016858,2]
[424347385,1780774249000,-300.0,0.00016858,2]
[424347388,1780774249000,-500.0,0.00016877,2]
[424347386,1780774249000,-300.0,0.00016858,2]
[424347396,1780774249000,-1673.92507737,0.000173,2]
[424347391,1780774249000,-1159.39304982,0.00017,2]
[424347394,1780774249000,-216.92407136,0.00017201,2]
[424347392,1780774249000,-1673.92507737,0.000171,2]
[424347395,1780774249000,-390.07286512,0.00017201,2]
[424347389,1780774249000,-500.0,0.00016877,2]
[424347393,1780774249000,-1125.0,0.00017113,2]
[424347332,1780774249000,-151.0,0.00016438,2]
[424347365,1780774249000,-400.0,0.0001667,2]
[424347364,1780774249000,-400.0,0.0001667,2]
[424347390,1780774249000,-1673.92507737,0.000169,2]
[424347369,1780774249000,-400.0,0.0001667,2]
[424347335,1780774249000,-273.641047,0.00016438,2]
[424347334,1780774249000,-151.0,0.00016438,2]
[424347342,1780774249000,-1012.880522,0.00016438,2]
[424347341,1780774249000,-1012.880522,0.00016438,2]
[424347344,1780774249000,-1012.880522,0.00016438,2]
[424347343,1780774249000,-1012.880522,0.00016438,2]
[424347337,1780774249000,-1012.880522,0.00016438,2]
[424347338,1780774249000,-1012.880522,0.00016438,2]
[424347340,1780774249000,-1012.880522,0.00016438,2]
[424347359,1780774249000,-1951.08,0.000166,2]
[424347339,1780774249000,-1012.880522,0.00016438,2]
[424347357,1780774249000,-300.37111851,0.00016513,2]
[424347356,1780774249000,-1000.0,0.000165,2]
[424347346,1780774249000,-1012.880522,0.00016438,2]
[424347348,1780774249000,-155.784892,0.00016438,2]
[424347336,1780774249000,-1012.880522,0.00016438,2]
[424347349,1780774249000,-300.0,0.00016473,2]
[424347363,1780774249000,-400.0,0.0001667,2]
[424347345,1780774249000,-1012.880522,0.00016438,2]
[424347362,1780774249000,-400.0,0.0001667,2]
[424347361,1780774249000,-204.3774174,0.00016617,2]
[424347360,1780774249000,-1673.92507737,0.000166,2]
[424347358,1780774249000,-342.93799702,0.00016513,2]
[424347367,1780774249000,-400.0,0.0001667,2]
[424347354,1780774249000,-300.0,0.00016473,2]
[424347352,1780774249000,-300.0,0.00016473,2]
[424347351,1780774249000,-300.0,0.00016473,2]
[424347353,1780774249000,-666.0,0.00016473,2]
[424347347,1780774249000,-1012.880522,0.00016438,2]
[424347350,1780774249000,-300.0,0.00016473,2]
[424347355,1780774249000,-467.48,0.000165,7]
[424347440,1780774250000,-350.0,0.00018,2]
[424347441,1780774250000,-172.05861451,0.00018,2]
[424347445,1780774250000,-200.0,0.00018,2]
[424347444,1780774250000,-315.0,0.00018,2]
[424347428,1780774250000,-1328.27659266,0.00017924,2]
[424347432,1780774250000,-300.0,0.00017999,2]
[424347430,1780774250000,-300.0,0.00017999,2]
[424347427,1780774250000,-911.0,0.000179,6]
[424347429,1780774250000,-1934.38338736,0.00017924,2]
[424347424,1780774250000,-1000.0,0.00017781,2]
[424347446,1780774250000,-1125.0,0.00018014,2]
[424347436,1780774250000,-1587.33,0.00018,2]
[424347454,1780774250000,-231.01520189,0.000184,2]
[424347439,1780774250000,-2438.10380057,0.00018,2]
[424347438,1780774250000,-1802.4876194,0.00018,2]
[424347442,1780774250000,-309.0,0.00018,2]
[424347443,1780774250000,-1000.0,0.00018,2]
[424347458,1780774250000,-1951.08,0.000185,2]
[424347448,1780774250000,-1802.4876194,0.000182,2]
[424347459,1780774250000,-1802.4876194,0.000185,2]
[424347447,1780774250000,-1673.92507737,0.000182,2]
[424347453,1780774250000,-231.01520189,0.000184,2]
[424347450,1780774250000,-1802.4876194,0.000184,2]
[424347451,1780774250000,-2438.10380057,0.000184,2]
[424347449,1780774250000,-2438.10380057,0.000182,2]
[424347431,1780774250000,-300.0,0.00017999,2]
[424347437,1780774250000,-1673.92507737,0.00018,2]
[424347426,1780774250000,-1673.92507737,0.000178,2]
[424347416,1780774250000,-15288.9507513,0.00017565,2]
[424347422,1780774250000,-666.0,0.00017632,2]
[424347452,1780774250000,-231.0152019,0.000184,2]
[424347398,1780774250000,-1280.88388877,0.00017376,2]
[424347400,1780774250000,-1673.92507737,0.000175,2]
[424347401,1780774250000,-850.0,0.00017504,2]
[424347408,1780774250000,-850.0,0.00017504,2]
[424347399,1780774250000,-1865.36488656,0.00017376,2]
[424347397,1780774250000,-500.0,0.00017329,2]
[424347404,1780774250000,-850.0,0.00017504,2]
[424347402,1780774250000,-850.0,0.00017504,2]
[424347407,1780774250000,-850.0,0.00017504,2]
[424347406,1780774250000,-850.0,0.00017504,2]
[424347403,1780774250000,-850.0,0.00017504,2]
[424347405,1780774250000,-850.0,0.00017504,2]
[424347425,1780774250000,-152.51,0.000178,2]
[424347409,1780774250000,-850.0,0.00017504,2]
[424347415,1780774250000,-1286.4246244,0.00017565,2]
[424347413,1780774250000,-546301.7692208,0.00017565,2]
[424347414,1780774250000,-753.4864356,0.00017565,2]
[424347421,1780774250000,-300.0,0.00017632,2]
[424347418,1780774250000,-300.0,0.00017632,2]
[424347411,1780774250000,-300.0,0.00017565,2]
[424347417,1780774250000,-1673.92507737,0.000176,2]
[424347419,1780774250000,-300.0,0.00017632,2]
[424347410,1780774250000,-511.0,0.00017504,2]
[424347412,1780774250000,-500.4376149,0.00017565,2]
[424347423,1780774250000,-794.10843908,0.000177,2]
[424347433,1780774250000,-300.0,0.00017999,2]
[424347434,1780774250000,-682.36022223,0.00017999,2]
[424347420,1780774250000,-300.0,0.00017632,2]
[424347455,1780774250000,-305.1,0.0001841,2]
[424347435,1780774250000,-9868.9,0.00018,2]
[424347457,1780774250000,-2005.9555727,0.00018472,2]
[424347486,1780774250000,-1000.0,0.0001902,2]
[424347492,1780774250000,-151.0,0.0001902,2]
[424347495,1780774250000,-500.0,0.0001902,2]
[424347493,1780774250000,-2080.17592889,0.0001902,2]
[424347494,1780774250000,-1000.0,0.0001902,2]
[424347499,1780774250000,-209.40437684,0.0001902,2]
[424347498,1780774250000,-151.0,0.0001902,2]
[424347497,1780774250000,-1000.0,0.0001902,2]
[424347456,1780774250000,-1377.42282658,0.00018472,2]
[424347508,1780774250000,-152.0,0.0001902,2]
[424347506,1780774250000,-627.32764209,0.0001902,2]
[424347504,1780774250000,-152.0,0.0001902,2]
[424347507,1780774250000,-151.0,0.0001902,2]
[424347487,1780774250000,-578.20924308,0.0001902,2]
[424347500,1780774250000,-1000.0,0.0001902,2]
[424347502,1780774250000,-151.0,0.0001902,2]
[424347503,1780774250000,-1000.0,0.0001902,2]
[424347509,1780774250000,-721.12765534,0.0001902,2]
[424347513,1780774250000,-151.0,0.0001902,2]
[424347516,1780774250000,-500.0,0.0001902,2]
[424347510,1780774250000,-151.0,0.0001902,2]
[424347515,1780774250000,-152.0,0.0001902,2]
[424347511,1780774250000,-152.0,0.0001902,2]
[424347514,1780774250000,-151.0,0.0001902,2]
[424347519,1780774250000,-151.0,0.0001902,2]
[424347518,1780774250000,-151.0,0.0001902,2]
[424347512,1780774250000,-500.0,0.0001902,2]
[424347517,1780774250000,-151.0,0.0001902,2]
[424347501,1780774250000,-151.0,0.0001902,2]
[424347491,1780774250000,-1000.0,0.0001902,2]
[424347505,1780774250000,-151.0,0.0001902,2]
[424347490,1780774250000,-1000.0,0.0001902,2]
[424347461,1780774250000,-154.52,0.00018647,2]
[424347460,1780774250000,-2438.10380057,0.000185,2]
[424347471,1780774250000,-17162.66500956,0.00019,2]
[424347488,1780774250000,-1000.0,0.0001902,2]
[424347462,1780774250000,-1802.4876194,0.000187,2]
[424347463,1780774250000,-2438.10380057,0.000187,2]
[424347468,1780774250000,-300.0,0.00018999,2]
[424347469,1780774250000,-300.0,0.00018999,2]
[424347466,1780774250000,-1125.0,0.00018962,2]
[424347465,1780774250000,-2438.10380057,0.000189,2]
[424347467,1780774250000,-300.0,0.00018999,2]
[424347470,1780774250000,-300.0,0.00018999,2]
[424347473,1780774250000,-693.39197629,0.0001902,2]
[424347481,1780774250000,-693.39197629,0.0001902,2]
[424347464,1780774250000,-1802.4876194,0.000189,2]
[424347483,1780774250000,-151.0,0.0001902,2]
[424347482,1780774250000,-151.0,0.0001902,2]
[424347496,1780774250000,-209.40437684,0.0001902,2]
[424347485,1780774250000,-1428.38747117,0.0001902,2]
[424347477,1780774250000,-174.61919141,0.0001902,2]
[424347479,1780774250000,-151.0,0.0001902,2]
[424347480,1780774250000,-200.0,0.0001902,2]
[424347489,1780774250000,-151.0,0.0001902,2]
[424347478,1780774250000,-151.0,0.0001902,2]
[424347474,1780774250000,-209.40437684,0.0001902,2]
[424347475,1780774250000,-151.0,0.0001902,2]
[424347484,1780774250000,-200.0,0.0001902,2]
[424347472,1780774250000,-151.0,0.0001902,2]
[424347476,1780774250000,-151.0,0.0001902,2]
[424347533,1780774251000,-151.0,0.0001902,2]
[424347538,1780774251000,-151.0,0.0001902,2]
[424347537,1780774251000,-152.0,0.0001902,2]
[424347541,1780774251000,-151.0,0.0001902,2]
[424347535,1780774251000,-174.01604282,0.0001902,2]
[424347536,1780774251000,-151.0,0.0001902,2]
[424347539,1780774251000,-500.0,0.0001902,2]
[424347540,1780774251000,-151.0,0.0001902,2]
[424347534,1780774251000,-500.0,0.0001902,2]
[424347529,1780774251000,-151.0,0.0001902,2]
[424347523,1780774251000,-500.0,0.0001902,2]
[424347528,1780774251000,-151.0,0.0001902,2]
[424347530,1780774251000,-500.0,0.0001902,2]
[424347524,1780774251000,-152.0,0.0001902,2]
[424347526,1780774251000,-209.40437684,0.0001902,2]
[424347522,1780774251000,-151.0,0.0001902,2]
[424347525,1780774251000,-151.0,0.0001902,2]
[424347521,1780774251000,-500.0,0.0001902,2]
[424347531,1780774251000,-152.0,0.0001902,2]
[424347520,1780774251000,-152.0,0.0001902,2]
[424347527,1780774251000,-152.0,0.0001902,2]
[424347544,1780774251000,-151.0,0.0001902,2]
[424347532,1780774251000,-151.0,0.0001902,2]
[424347543,1780774251000,-152.0,0.0001902,2]
[424347542,1780774251000,-500.0,0.0001902,2]
[424347562,1780774251000,-151.0,0.00019075,2]
[424347564,1780774251000,-2438.10380057,0.000191,2]
[424347563,1780774251000,-1802.4876194,0.000191,2]
[424347560,1780774251000,-151.0,0.00015,2]
[424347558,1780774251000,-151.0,0.00015,2]
[424347559,1780774251000,-151.0,0.00015,2]
[424347557,1780774251000,-270.01213512,0.00019075,2]
[424347556,1780774251000,-246.12612471,0.0001902,2]
[424347555,1780774251000,-151.0,0.00013698,2]
[424347561,1780774251000,-449.0353443,0.00019075,2]
[424347553,1780774251000,-287.81770844,0.0001902,2]
[424347551,1780774251000,-151.0,0.0001902,2]
[424347552,1780774251000,-212.18229156,0.0001902,2]
[424347550,1780774251000,-151.0,0.0001902,2]
[424347549,1780774251000,-151.0,0.0001902,2]
[424347548,1780774251000,-152.0,0.0001902,2]
[424347547,1780774251000,-151.0,0.0001902,2]
[424347545,1780774251000,-151.0,0.0001902,2]
[424347554,1780774251000,-253.87387529,0.0001902,2]
[424347546,1780774251000,-500.0,0.0001902,2]
[424347606,1780774252000,-225.903832,0.00019452,2]
[424347605,1780774252000,-151.0,0.00019405,2]
[424347603,1780774252000,-151.0,0.0001935,2]
[424347600,1780774252000,-2438.10380057,0.000193,2]
[424347599,1780774252000,-1802.4876194,0.000193,2]
[424347596,1780774252000,-151.0,0.0001924,2]
[424347595,1780774252000,-801.85129954,0.0001924,2]
[424347597,1780774252000,-831.51979762,0.00019295,2]
[424347598,1780774252000,-151.0,0.00019295,2]
[424347612,1780774252000,-151.0,0.00019515,2]
[424347601,1780774252000,-1548.0,0.00019319,2]
[424347609,1780774252000,-1802.4876194,0.000195,2]
[424347619,1780774252000,-1481.2378076,0.00019568,2]
[424347604,1780774252000,-894.19061325,0.00019405,2]
[424347613,1780774252000,-151.0,0.00019568,2]
[424347607,1780774252000,-927.27566594,0.0001946,2]
[424347611,1780774252000,-961.58486558,0.00019515,2]
[424347608,1780774252000,-151.0,0.0001946,2]
[424347610,1780774252000,-2438.10380057,0.000195,2]
[424347616,1780774252000,-719.04747942,0.00019568,2]
[424347626,1780774252000,-997.16350561,0.0001957,2]
[424347615,1780774252000,-181.08010149,0.00019568,2]
[424347594,1780774252000,-151.0,0.00019185,2]
[424347617,1780774252000,-200.0,0.00019568,2]
[424347618,1780774252000,-200.0,0.00019568,2]
[424347620,1780774252000,-2157.14243826,0.00019568,2]
[424347614,1780774252000,-217.15233878,0.00019568,2]
[424347593,1780774252000,-773.24136889,0.00019185,2]
[424347581,1780774252000,-151.0,0.00019178,2]
[424347592,1780774252000,-173.386928,0.00019178,2]
[424347621,1780774252000,-500.0,0.00019568,2]
[424347565,1780774252000,-745.65223615,0.0001913,2]
[424347566,1780774252000,-151.0,0.0001913,2]
[424347568,1780774252000,-839.06718577,0.00019178,7]
[424347571,1780774252000,-151.0,0.00019178,2]
[424347574,1780774252000,-151.0,0.00019178,2]
[424347567,1780774252000,-3000.0,0.00019178,2]
[424347578,1780774252000,-151.0,0.00019178,2]
[424347569,1780774252000,-151.0,0.00019178,2]
[424347579,1780774252000,-151.0,0.00019178,2]
[424347572,1780774252000,-151.0,0.00019178,2]
[424347570,1780774252000,-151.0,0.00019178,2]
[424347573,1780774252000,-151.0,0.00019178,2]
[424347576,1780774252000,-151.0,0.00019178,2]
[424347575,1780774252000,-151.0,0.00019178,2]
[424347577,1780774252000,-151.0,0.00019178,2]
[424347580,1780774252000,-151.0,0.00019178,2]
[424347583,1780774252000,-151.0,0.00019178,2]
[424347582,1780774252000,-151.0,0.00019178,2]
[424347590,1780774252000,-151.0,0.00019178,2]
[424347585,1780774252000,-151.0,0.00019178,2]
[424347586,1780774252000,-151.0,0.00019178,2]
[424347588,1780774252000,-151.0,0.00019178,2]
[424347589,1780774252000,-151.0,0.00019178,2]
[424347584,1780774252000,-151.0,0.00019178,2]
[424347587,1780774252000,-151.0,0.00019178,2]
[424347591,1780774252000,-151.0,0.00019178,2]
[424347602,1780774252000,-862.28603014,0.0001935,2]
[424347623,1780774252000,-151.0,0.00019568,2]
[424347673,1780774252000,-187.78006524,0.00020116,2]
[424347622,1780774252000,-217.15233878,0.00019568,2]
[424347652,1780774252000,-2256.02713155,0.0002,2]
[424347658,1780774252000,-1545.0,0.0002,2]
[424347655,1780774252000,-707.0,0.0002,2]
[424347659,1780774252000,-656.0,0.0002,2]
[424347660,1780774252000,-411.0,0.0002,2]
[424347663,1780774252000,-521.0,0.0002,2]
[424347682,1780774252000,-151.0,0.00020116,2]
[424347664,1780774252000,-1455.0,0.0002,2]
[424347662,1780774252000,-469.0,0.0002,2]
[424347667,1780774252000,-1105.0,0.0002,2]
[424347670,1780774252000,-215.80795776,0.00020092,2]
[424347671,1780774252000,-151.0,0.00020116,2]
[424347651,1780774252000,-213.55,0.0002,2]
[424347668,1780774252000,-258.0,0.0002,2]
[424347665,1780774252000,-506.0,0.0002,2]
[424347672,1780774252000,-225.18697532,0.00020116,2]
[424347674,1780774252000,-745.65223615,0.00020116,2]
[424347677,1780774252000,-200.0,0.00020116,2]
[424347676,1780774252000,-1536.04360648,0.00020116,2]
[424347675,1780774252000,-200.0,0.00020116,2]
[424347678,1780774252000,-2236.95670847,0.00020116,2]
[424347681,1780774252000,-151.0,0.00020116,2]
[424347683,1780774252000,-225.18697532,0.00020116,2]
[424347679,1780774252000,-500.0,0.00020116,2]